bitfinex/quotes_BTCUSD_20250529
["timestamp","ask_amount","ask_price","bid_price","bid_amount"]
[1748513391946,0.9884,108400.0,108390.0,1.88828726]
[1748513392402,0.9884,108400.0,108390.0,1.89028726]
[1748513392627,0.9874,108400.0,108390.0,1.88728726]
[1748513392831,0.9884,108400.0,108390.0,1.87204682]
[1748513393034,0.9894,108400.0,108390.0,1.89341798]
[1748513393241,0.9894,108400.0,108390.0,1.9106311]
[1748513393452,0.9894,108400.0,108390.0,1.89341798]
[1748513393676,0.9894,108400.0,108390.0,1.9106311]
[1748513394505,0.9894,108400.0,108390.0,1.91061556]
[1748513394807,0.9894,108400.0,108390.0,1.89341374]
[1748513394935,0.9894,108400.0,108390.0,1.91061556]
[1748513395748,0.9894,108400.0,108390.0,2.21003233]
[1748513395971,0.9894,108400.0,108390.0,2.21002506]
[1748513396400,0.9894,108400.0,108390.0,2.21002233]
[1748513396601,0.9894,108400.0,108390.0,2.18637983]
[1748513396751,0.9894,108400.0,108390.0,2.21001556]
[1748513397365,0.9894,108400.0,108390.0,2.21001359]
[1748513397983,0.9894,108400.0,108390.0,1.91059682]
[1748513398193,0.9894,108400.0,108390.0,1.90415125]
[1748513398478,0.9894,108400.0,108390.0,1.91059682]
[1748513398682,0.9894,108400.0,108390.0,2.19282385]
[1748513399095,0.9894,108400.0,108390.0,2.2100079]
[1748513399319,0.9894,108400.0,108390.0,2.59356388]
[1748513399556,0.9894,108400.0,108390.0,2.60000788]
[1748513399960,0.9894,108400.0,108390.0,2.6000064]
[1748513400649,0.9894,108400.0,108390.0,2.57637983]
[1748513400865,0.9894,108400.0,108390.0,2.59356279]
[1748513401102,0.9894,108400.0,108390.0,2.57637983]
[1748513401600,0.9894,108400.0,108390.0,2.58282344]
[1748513401816,0.9894,108400.0,108390.0,2.6000064]
[1748513402444,0.9894,108400.0,108390.0,2.60000358]
[1748513402653,0.9894,108400.0,108390.0,2.59356058]
[1748513402861,0.9894,108400.0,108390.0,2.57637983]
[1748513404205,0.9894,108400.0,108390.0,2.29390406]
[1748513404427,0.9894,108400.0,108390.0,2.27672306]
[1748513404631,0.9894,108400.0,108390.0,2.30034718]
[1748513405282,0.9894,108400.0,108390.0,2.283166]
[1748513405500,0.9894,108400.0,108390.0,1.93532836]
[1748513405722,0.9894,108400.0,108390.0,2.30034711]
[1748513405928,0.9894,108400.0,108390.0,2.31752811]
[1748513406984,0.9894,108400.0,108390.0,2.29390424]
[1748513407191,0.9894,108400.0,108390.0,2.30034747]
[1748513407410,0.9894,108400.0,108390.0,2.29390424]
[1748513407647,0.9894,108400.0,108390.0,2.31108618]
[1748513407859,0.9894,108400.0,108390.0,1.18006983]
[1748513408070,0.9894,108400.0,108390.0,1.89854916]
[1748513408981,0.99862441,108400.0,108390.0,1.89854916]
[1748513409619,0.9894,108400.0,108390.0,1.89854916]
[1748513409834,0.9894,108400.0,108390.0,1.90499417]
[1748513410044,0.9894,108400.0,108390.0,1.89854916]
[1748513410489,0.9894,108400.0,108390.0,1.91573584]
[1748513410710,0.9894,108400.0,108390.0,1.89854916]
[1748513410928,0.9894,108400.0,108390.0,1.91573984]
[1748513411174,0.9894,108400.0,108390.0,1.89854916]
[1748513412059,0.9894,108400.0,108390.0,1.91573984]
[1748513412060,0.99862432,108400.0,108390.0,1.91573984]
[1748513412709,0.99862432,108400.0,108390.0,1.92219536]
[1748513413567,0.99862432,108400.0,108390.0,1.92219659]
[1748513414446,0.99862432,108400.0,108390.0,1.62277982]
[1748513414661,0.99862432,108400.0,108390.0,1.92219986]
[1748513415102,0.99862432,108400.0,108390.0,1.90499935]
[1748513415323,0.99862432,108400.0,108390.0,1.92219986]
[1748513415529,0.99862432,108400.0,108390.0,1.92221871]
[1748513415742,1.00784881,108400.0,108390.0,1.92221871]
[1748513416392,1.00784881,108400.0,108390.0,1.9222187]
[1748513416647,1.00784881,108400.0,108390.0,1.90501004]
[1748513416862,1.00784881,108400.0,108390.0,1.92223906]
[1748513417043,1.01707347,108400.0,108390.0,1.91577818]
[1748513417287,1.01707347,108400.0,108390.0,1.89854916]
[1748513417735,1.01707347,108400.0,108390.0,1.91577818]
[1748513417964,1.01707347,108400.0,108390.0,1.89854916]
[1748513418192,1.21080091,108400.0,108390.0,1.89716669]
[1748513418444,1.0355239,108400.0,108390.0,1.89834925]
[1748513418871,1.0355245,108400.0,108390.0,1.89834925]
[1748513419316,1.22002634,108400.0,108390.0,1.90757476]
[1748513419504,1.0355245,108400.0,108390.0,1.91405049]
[1748513419745,1.21080168,108400.0,108390.0,1.90482515]
[1748513419967,1.21080168,108400.0,108390.0,1.89834942]
[1748513420205,1.21080168,108400.0,108390.0,1.92209376]
[1748513420463,1.21080168,108400.0,108390.0,1.92209598]
[1748513420686,1.21080168,108400.0,108390.0,1.91405058]
[1748513420687,1.02629984,108400.0,108390.0,1.91405058]
[1748513420905,1.02629984,108400.0,108390.0,1.93779737]
[1748513421116,1.02629984,108400.0,108390.0,1.91404998]
[1748513421336,1.21080168,108400.0,108390.0,1.89285026]
[1748513421583,1.20157685,108400.0,108390.0,1.9193466]
[1748513421790,1.01707501,108400.0,108390.0,1.90482464]
[1748513422004,1.01707501,108400.0,108390.0,1.9113012]
[1748513422230,1.01707501,108400.0,108390.0,1.90482464]
[1748513422453,1.20157685,108400.0,108390.0,1.9193466]
[1748513422667,1.20157685,108400.0,108390.0,1.92857203]
[1748513422937,1.01707501,108400.0,108390.0,1.9285676]
[1748513423215,1.01707501,108400.0,108390.0,1.9372014]
[1748513423830,1.00784992,108400.0,108390.0,1.94642674]
[1748513424043,1.00784992,108400.0,108390.0,1.94642467]
[1748513424316,1.01707501,108400.0,108390.0,1.93719933]
[1748513424519,1.01707501,108400.0,108390.0,1.91129947]
[1748513424741,0.99862492,108400.0,108390.0,1.96267361]
[1748513424957,1.01707458,108400.0,108390.0,2.27131572]
[1748513425392,1.01707458,108400.0,108390.0,2.2713157]
[1748513425670,1.02629967,108400.0,108390.0,2.2534575]
[1748513425907,1.02629967,108400.0,108390.0,2.2707227]
[1748513426096,1.01707458,108400.0,108390.0,2.27994804]
[1748513426345,1.01707458,108400.0,108390.0,2.25404998]
[1748513426564,1.00784958,108400.0,108390.0,2.25404998]
[1748513427025,1.01707458,108400.0,108390.0,2.27994701]
[1748513427856,1.01707458,108400.0,108390.0,2.27131467]
[1748513428312,1.01707458,108400.0,108390.0,2.25404998]
[1748513428520,1.01707458,108400.0,108390.0,2.27994701]
[1748513428725,1.01707458,108400.0,108390.0,2.26268209]
[1748513428943,1.01707458,108400.0,108390.0,2.25404998]
[1748513429410,1.01707458,108400.0,108390.0,2.26268209]
[1748513429626,1.00784958,108400.0,108390.0,2.25404998]
[1748513429831,1.00784958,108400.0,108390.0,2.2713142]
[1748513430046,1.00784958,108400.0,108390.0,2.25404998]
[1748513430274,1.0170739,108400.0,108390.0,2.25404998]
[1748513430489,1.0170739,108400.0,108390.0,2.2713142]
[1748513430711,1.0170739,108400.0,108390.0,2.25404998]
[1748513430886,1.0170739,108400.0,108390.0,2.27994631]
[1748513431119,1.0170739,108400.0,108390.0,2.25404998]
[1748513431345,1.0170739,108400.0,108390.0,2.26268209]
[1748513431609,1.0170739,108400.0,108390.0,2.25404998]
[1748513431850,1.0170739,108400.0,108390.0,2.26268209]
[1748513432112,1.0170739,108400.0,108390.0,2.62795619]
[1748513432311,1.0170739,108400.0,108390.0,2.6365894]
[1748513432543,1.0170739,108400.0,108390.0,2.64522261]
[1748513432757,1.0170739,108400.0,108390.0,2.6365894]
[1748513432976,1.02629882,108400.0,108390.0,2.3459894]
[1748513433215,1.02629882,108400.0,108390.0,2.62783619]
[1748513433442,1.02629882,108400.0,108390.0,2.64510261]
[1748513433671,1.0170739,108400.0,108390.0,2.62783619]
[1748513434135,1.00784907,108400.0,108390.0,2.62783619]
[1748513434353,1.0170739,108400.0,108390.0,2.62783619]
[1748513434783,1.0170739,108400.0,108390.0,2.64510261]
[1748513435201,1.0170739,108400.0,108390.0,2.6364694]
[1748513435418,1.00784907,108400.0,108390.0,2.62783619]
[1748513435604,1.0170739,108400.0,108390.0,2.62783619]
[1748513435814,1.0170739,108400.0,108390.0,2.67100477]
[1748513436064,1.0170739,108400.0,108390.0,2.65373666]
[1748513436528,1.0170739,108400.0,108390.0,2.67100477]
[1748513436750,1.0170739,108400.0,108390.0,2.65373666]
[1748513436971,1.00808752,108400.0,108390.0,1.98905174]
[1748513437184,1.01731244,108400.0,108390.0,2.65373666]
[1748513437395,0.99886269,108400.0,108390.0,2.33101297]
[1748513437613,1.00808752,108400.0,108390.0,2.31373666]
[1748513437831,0.99886269,108400.0,108390.0,2.67101295]
[1748513438037,0.99886269,108400.0,108390.0,2.65373666]
[1748513438254,0.99886269,108400.0,108390.0,2.6623748]
[1748513438459,0.99886269,108400.0,108390.0,2.65373666]
[1748513438760,0.99886269,108400.0,108390.0,2.67965109]
[1748513438990,0.99886269,108400.0,108390.0,2.67964883]
[1748513439608,0.99886261,108400.0,108390.0,2.67964883]
[1748513440275,1.00808727,108400.0,108390.0,2.67964883]
[1748513440712,1.00808727,108400.0,108390.0,2.65373666]
[1748513440919,1.00808727,108400.0,108390.0,2.67964842]
[1748513441348,0.98963803,108400.0,108390.0,2.67964842]
[1748513441785,0.99886261,108400.0,108390.0,2.67964838]
[1748513442053,0.99886261,108400.0,108390.0,2.65373666]
[1748513442282,0.98041362,108400.0,108390.0,2.69418916]
[1748513442514,0.98041362,108400.0,108390.0,2.68555106]
[1748513442739,0.98041362,108400.0,108390.0,2.68555085]
[1748513443428,0.98041362,108400.0,108390.0,2.68554485]
[1748513444336,0.98041362,108400.0,108390.0,2.68554238]
[1748513445025,0.98041362,108400.0,108390.0,2.66827751]
[1748513445707,0.98041362,108400.0,108390.0,2.6855414]
[1748513446182,0.98041362,108400.0,108390.0,2.66827751]
[1748513446819,0.98041362,108400.0,108390.0,2.68554126]
[1748513447367,0.98041362,108400.0,108390.0,2.68553873]
[1748513448311,0.98041362,108400.0,108390.0,2.39505873]
[1748513448514,0.98041362,108400.0,108390.0,2.68541873]
[1748513448931,0.98041362,108400.0,108390.0,2.68541695]
[1748513449136,0.98963794,108400.0,108390.0,2.66815751]
[1748513449342,0.98963794,108400.0,108390.0,2.68541695]
[1748513450740,0.98963794,108400.0,108390.0,2.68541673]
[1748513450960,0.98963794,108400.0,108390.0,2.39505673]
[1748513451167,0.98963794,108400.0,108390.0,2.66811751]
[1748513451380,0.99886235,108400.0,108390.0,2.6853767]
[1748513451966,0.98963794,108400.0,108390.0,2.6853767]
[1748513452375,0.99886235,108400.0,108390.0,2.6853767]
[1748513452663,0.98963794,108400.0,108390.0,2.66811751]
[1748513452892,0.98963794,108400.0,108390.0,2.68537668]
[1748513453103,0.98963794,108400.0,108390.0,2.66811751]
[1748513453370,0.98963794,108400.0,108390.0,2.68537668]
[1748513453580,0.98963794,108400.0,108390.0,2.66811751]
[1748513453800,0.98963794,108400.0,108390.0,2.68537668]
[1748513454021,0.99886235,108400.0,108390.0,2.68537668]
[1748513454408,1.00808693,108400.0,108390.0,2.68537668]
[1748513454650,0.99886235,108400.0,108390.0,2.68533668]
[1748513455052,0.99886235,108400.0,108390.0,2.6853371]
[1748513456691,0.99886235,108400.0,108390.0,2.66807751]
[1748513457186,0.98963794,108400.0,108390.0,2.66807751]
[1748513457411,0.98963794,108400.0,108390.0,2.68533756]
[1748513457612,0.98963794,108400.0,108390.0,2.66807751]
[1748513458778,0.99886243,108400.0,108390.0,2.66807751]
[1748513458992,0.99886235,108400.0,108390.0,2.66807751]
[1748513459207,0.99886235,108400.0,108390.0,2.68533806]
[1748513459422,0.99886235,108400.0,108390.0,2.66807751]
[1748513459637,0.99886235,108400.0,108390.0,2.68533806]
[1748513459884,0.99886235,108400.0,108390.0,2.66807751]
[1748513461179,0.99886235,108400.0,108390.0,2.68533807]
[1748513461398,0.99886235,108400.0,108390.0,2.66807751]
[1748513461623,1.00808693,108400.0,108390.0,2.66807751]
[1748513462094,1.00808693,108400.0,108390.0,2.68533816]
[1748513462542,1.00808693,108400.0,108390.0,1.78072866]
[1748513462543,1.19259013,108400.0,108390.0,1.78072866]
[1748513462546,1.18336547,108400.0,108390.0,1.08816717]
[1748513462782,1.19856547,108400.0,108390.0,1.75818478]
[1748513463008,1.19856547,108400.0,108390.0,1.71502866]
[1748513463240,1.19856547,108400.0,108390.0,1.02282101]
[1748513463473,1.19856547,108400.0,108390.0,1.74092247]
[1748513463702,1.19856547,108400.0,108390.0,1.73229119]
[1748513463936,1.19856547,108400.0,108390.0,1.72365992]
[1748513464166,1.19856547,108400.0,108390.0,1.74092247]
[1748513464397,1.19856547,108400.0,108390.0,1.72365992]
[1748513464628,1.19856547,108400.0,108390.0,1.73229119]
[1748513464857,1.19856547,108400.0,108390.0,1.72365992]
[1748513466071,1.19856547,108400.0,108390.0,1.73229119]
[1748513466327,1.19856547,108400.0,108390.0,1.72365992]
[1748513466551,1.19856547,108400.0,108390.0,1.74092247]
[1748513466773,1.19856547,108400.0,108390.0,1.73229119]
[1748513466991,1.19856547,108400.0,108390.0,1.74092247]
[1748513467216,1.18336547,108400.0,108390.0,1.91740455]
[1748513467439,1.18336547,108400.0,108390.0,1.92603582]
[1748513467903,1.18336547,108400.0,108390.0,1.91740455]
[1748513468122,1.18336547,108400.0,108390.0,1.90817878]
[1748513468340,1.18336547,108400.0,108390.0,1.92663057]
[1748513468572,1.18336547,108400.0,108390.0,1.93526184]
[1748513468797,1.18336547,108400.0,108390.0,2.27251774]
[1748513469024,1.18336547,108400.0,108390.0,2.27192398]
[1748513469247,1.18336547,108400.0,108390.0,1.93585634]
[1748513469479,1.18336547,108400.0,108390.0,1.94448826]
[1748513469709,1.18336547,108400.0,108390.0,1.93585634]
[1748513470218,1.18336547,108400.0,108390.0,1.95205634]
[1748513470437,1.18336547,108400.0,108390.0,2.28871783]
[1748513470870,1.18336547,108400.0,108390.0,2.01578751]
[1748513471087,1.18336547,108400.0,108390.0,2.30594751]
[1748513471297,1.18336547,108400.0,108390.0,2.26325206]
[1748513471798,1.18336547,108400.0,108390.0,1.93522541]
[1748513472024,1.18336547,108400.0,108390.0,1.94445118]
[1748513472249,1.18336547,108400.0,108390.0,1.96055336]
[1748513472477,1.18336547,108400.0,108390.0,1.94327399]
[1748513472745,1.18336547,108400.0,108390.0,1.59797282]
[1748513472943,1.18336547,108400.0,108390.0,1.93463431]
[1748513473165,1.18336547,108400.0,108390.0,1.96055417]
[1748513473387,1.18336547,108400.0,108390.0,1.95191422]
[1748513473849,1.18336547,108400.0,108390.0,1.96919413]
[1748513474106,1.18336547,108400.0,108390.0,1.94329805]
[1748513474578,1.18336547,108400.0,108390.0,1.74955334]
[1748513474808,1.18336547,108400.0,108390.0,1.94329814]
[1748513475055,1.18336547,108400.0,108390.0,1.95252399]
[1748513475320,1.18336547,108400.0,108390.0,1.97039067]
[1748513475544,1.18336547,108400.0,108390.0,1.96174976]
[1748513475765,1.18336547,108400.0,108390.0,1.62508827]
[1748513475984,1.19916547,108400.0,108390.0,1.95189905]
[1748513476207,1.19916547,108400.0,108390.0,1.96976581]
[1748513476449,1.19916547,108400.0,108390.0,1.96170959]
[1748513476697,1.18336547,108400.0,108390.0,1.96976584]
[1748513476930,1.18336547,108400.0,108390.0,1.96976583]
[1748513477167,1.18336547,108400.0,108390.0,1.95248399]
[1748513477389,1.18336547,108400.0,108390.0,1.96976591]
[1748513477611,1.18336547,108400.0,108390.0,1.95248399]
[1748513478117,1.18336547,108400.0,108390.0,1.96112494]
[1748513478357,1.17414055,108400.0,108390.0,1.9697659]
[1748513478609,1.17414055,108400.0,108390.0,1.95248399]
[1748513479520,1.17414055,108400.0,108390.0,1.96976589]
[1748513479744,1.17414055,108400.0,108390.0,2.01285829]
[1748513479962,1.17414055,108400.0,108390.0,2.00421734]
[1748513480177,1.17414055,108400.0,108390.0,2.01285827]
[1748513480432,1.17414055,108400.0,108390.0,1.98693544]
[1748513480652,1.17414055,108400.0,108390.0,2.00421733]
[1748513480857,1.17414055,108400.0,108390.0,1.98693544]
[1748513481324,1.17414055,108400.0,108390.0,2.02011734]
[1748513481565,1.17414055,108400.0,108390.0,2.02875829]
[1748513481814,1.17414055,108400.0,108390.0,2.0379418]
[1748513482048,1.17414055,108400.0,108390.0,2.00283544]
[1748513482521,1.17414055,108400.0,108390.0,2.02871137]
[1748513482744,1.17414055,108400.0,108390.0,2.00283544]
[1748513483006,1.17414055,108400.0,108390.0,2.02008599]
[1748513483218,1.17414055,108400.0,108390.0,2.00283544]
[1748513483666,1.17414055,108400.0,108390.0,2.01146071]
[1748513483888,1.17414055,108400.0,108390.0,2.00283544]
[1748513484124,1.17414055,108400.0,108390.0,1.99421238]
[1748513484549,1.17414055,108400.0,108390.0,2.01145808]
[1748513484553,1.17414055,108400.0,108390.0,1.9849867]
[1748513485417,1.17414055,108400.0,108390.0,1.99360955]
[1748513486547,1.17414055,108400.0,108390.0,2.01946604]
[1748513486768,1.17414055,108400.0,108390.0,1.99360955]
[1748513487213,1.17414055,108400.0,108390.0,2.01084721]
[1748513487438,1.17414055,108400.0,108390.0,1.99360955]
[1748513487657,1.17414055,108400.0,108390.0,2.00222838]
[1748513487876,1.17414055,108400.0,108390.0,1.99360955]
[1748513488567,0.98041362,108400.0,108390.0,2.01206023]
[1748513488787,0.98041362,108400.0,108390.0,2.34872189]
[1748513488788,1.01731227,108400.0,108390.0,2.34872189]
[1748513489007,1.0265371,108400.0,108390.0,2.34872147]
[1748513489229,1.0265371,108400.0,108390.0,2.01205998]
[1748513489482,1.02653693,108400.0,108390.0,2.01205955]
[1748513489939,1.02653693,108400.0,108390.0,2.02070063]
[1748513490161,1.02653693,108400.0,108390.0,2.01205955]
[1748513490617,1.02653761,108400.0,108390.0,2.02934164]
[1748513490874,1.02653761,108400.0,108390.0,2.03798268]
[1748513491176,1.02653761,108400.0,108390.0,2.02070059]
[1748513491617,1.02653812,108400.0,108390.0,2.02069855]
[1748513491838,1.02653812,108400.0,108390.0,2.01205955]
[1748513492084,1.21103996,108400.0,108390.0,1.70348878]
[1748513492308,1.2018153,108400.0,108390.0,1.99344878]
[1748513492540,1.2018153,108400.0,108390.0,1.98422327]
[1748513492989,1.19259047,108400.0,108390.0,1.64756212]
[1748513493210,1.19259047,108400.0,108390.0,1.96832361]
[1748513494126,1.19259047,108400.0,108390.0,1.95968192]
[1748513494339,1.19259047,108400.0,108390.0,1.96890752]
[1748513494551,1.19259047,108400.0,108390.0,1.98420752]
[1748513494984,1.19259047,108400.0,108390.0,1.95045624]
[1748513495201,1.18336555,108400.0,108390.0,1.96890786]
[1748513495628,1.18336555,108400.0,108390.0,1.97813354]
[1748513496104,1.18336555,108400.0,108390.0,1.40384995]
[1748513496105,1.17414055,108400.0,108390.0,1.40384995]
[1748513496320,1.18964055,108400.0,108390.0,1.74051144]
[1748513496540,1.18964055,108400.0,108390.0,1.45059144]
[1748513496755,1.18964055,108400.0,108390.0,1.74051144]
[1748513496977,1.18964055,108400.0,108390.0,1.74915106]
[1748513497204,1.18964055,108400.0,108390.0,1.74915107]
[1748513497469,1.20464055,108400.0,108390.0,1.00450484]
[1748513497677,1.20464055,108400.0,108390.0,1.29442484]
[1748513497893,1.20464055,108400.0,108390.0,1.30306483]
[1748513498110,1.20464055,108400.0,108390.0,0.92206483]
[1748513498329,1.20464055,108400.0,108390.0,1.01314483]
[1748513498578,1.20464055,108400.0,108390.0,1.30306483]
[1748513500142,1.20464055,108400.0,108390.0,1.01314483]
[1748513500363,1.20464055,108400.0,108390.0,1.31166552]
[1748513500591,1.20464055,108400.0,108390.0,1.30302483]
[1748513501285,1.20464055,108400.0,108390.0,1.31166552]
[1748513501505,1.20464055,108400.0,108390.0,1.30302483]
[1748513501732,1.20464055,108400.0,108390.0,1.31166555]
[1748513502171,1.20464055,108400.0,108390.0,1.30302483]
[1748513502394,1.20464055,108400.0,108390.0,1.31164799]
[1748513502623,1.2956945,108400.0,108390.0,0.53240799]
[1748513502854,1.2956945,108400.0,108390.0,0.12378483]
[1748513503320,1.2956945,108400.0,108390.0,0.52378483]
[1748513503771,1.3233745,108400.0,108390.0,0.52378483]
[1748513504036,1.23232055,108400.0,108390.0,0.52378483]
[1748513504250,1.23132055,108400.0,108390.0,0.51314815]
[1748513504691,1.23232055,108400.0,108390.0,0.51614815]
[1748513505146,1.23132055,108400.0,108390.0,0.51314815]
[1748513505367,1.23232055,108400.0,108390.0,0.51614815]
[1748513506469,1.23232055,108400.0,108390.0,0.11614815]
[1748513506906,1.23232055,108400.0,108390.0,0.51614815]
[1748513507352,1.23232055,108400.0,108390.0,0.52477224]
[1748513507577,1.23232055,108400.0,108390.0,0.51614815]
[1748513508259,1.23232055,108400.0,108390.0,0.52477206]
[1748513508718,1.21732055,108400.0,108390.0,0.52477206]
[1748513508945,1.17414055,108400.0,108390.0,0.52477206]
[1748513509592,1.17414055,108400.0,108390.0,0.81461206]
[1748513509817,1.19034055,108400.0,108390.0,0.81461206]
[1748513510035,1.19034055,108400.0,108390.0,0.82323549]
[1748513510504,1.19034055,108400.0,108390.0,0.82323034]
[1748513511155,1.19034055,108400.0,108390.0,0.81461206]
[1748513511386,1.19034055,108400.0,108390.0,0.82323034]
[1748513511634,1.19034055,108400.0,108390.0,0.81461206]
[1748513513004,1.19034055,108400.0,108390.0,0.82322845]
[1748513513220,1.53034055,108400.0,108390.0,0.81461206]
[1748513513444,1.54624055,108400.0,108390.0,0.82318845]
[1748513513657,1.54624055,108400.0,108390.0,0.83180484]
[1748513513875,1.57391855,108400.0,108390.0,0.83180484]
[1748513514343,1.57391855,108400.0,108390.0,0.83180508]
[1748513515237,1.23391855,108400.0,108390.0,0.83180508]
[1748513515466,1.23391855,108400.0,108390.0,0.83180522]
[1748513515682,1.23391855,108400.0,108390.0,0.83180573]
[1748513516579,1.23391855,108400.0,108390.0,0.82318845]
[1748513517096,1.20181855,108400.0,108390.0,0.84750573]
[1748513517314,1.17414055,108400.0,108390.0,0.86300556]
[1748513517539,1.17414055,108400.0,108390.0,0.85438845]
[1748513519084,1.17414055,108400.0,108390.0,0.86300683]
[1748513519292,1.17414055,108400.0,108390.0,0.85438845]
[1748513520160,1.17414055,108400.0,108390.0,0.86300667]
[1748513520404,1.17414055,108400.0,108390.0,0.85438845]
[1748513521955,0.98041362,108400.0,108390.0,2.71524019]
[1748513522547,0.98041362,108400.0,108390.0,3.07468448]
[1748513522549,0.98041362,108400.0,108390.0,3.04994648]
[1748513522750,0.97941362,108400.0,108390.0,3.04694648]
[1748513522950,0.97941362,108400.0,108390.0,2.64694648]
[1748513523199,0.98041362,108400.0,108390.0,2.53423248]
[1748513523357,0.98041362,108400.0,108390.0,2.50177719]
[1748513523563,0.97941362,108400.0,108390.0,2.49877719]
[1748513523974,0.98041362,108400.0,108390.0,2.60277719]
[1748513524563,0.98041362,108400.0,108390.0,2.50577719]
[1748513528171,0.98041362,108400.0,108390.0,2.49264319]
[1748513528622,0.98041362,108400.0,108390.0,2.52030719]
[1748513529544,0.98041362,108400.0,108390.0,2.23050719]
[1748513529762,0.98041362,108400.0,108390.0,2.52010719]
[1748513530647,0.98041362,108400.0,108390.0,2.50248619]
[1748513531352,0.98041362,108400.0,108390.0,2.80193048]
[1748513531570,0.61695728,108400.0,108390.0,2.80193048]
[1748513532029,0.16351303,108400.0,108390.0,2.80193048]
[1748513532245,0.0984204,108400.0,108390.0,2.80193048]
[1748513532482,0.00709781,108400.0,108390.0,3.09603048]
[1748513532740,0.01844226,108440.0,108430.0,0.58431737]
[1748513532961,0.01844226,108440.0,108430.0,1.77029599]
[1748513533394,0.27686731,108450.0,108440.0,0.19365529]
[1748513533616,0.27686731,108450.0,108440.0,0.29393058]
[1748513534048,0.27686731,108450.0,108440.0,0.29407876]
[1748513534270,0.27686731,108450.0,108440.0,0.7033001]
[1748513534492,0.27686731,108450.0,108440.0,0.71248688]
[1748513535179,0.27686731,108450.0,108440.0,0.70326554]
[1748513535635,0.20485834,108450.0,108440.0,0.71248671]
[1748513535863,0.20485834,108450.0,108440.0,0.72838671]
[1748513536093,0.20485819,108450.0,108440.0,0.72838688]
[1748513536320,0.20485819,108450.0,108440.0,1.08656713]
[1748513536817,0.20585819,108450.0,108440.0,1.06144579]
[1748513539554,0.18741678,108450.0,108440.0,1.14800907]
[1748513540054,0.20391678,108450.0,108440.0,1.14800907]
[1748513540526,0.20391678,108450.0,108440.0,1.13885326]
[1748513543349,0.20391678,108450.0,108440.0,1.12966648]
[1748513544019,0.20391678,108450.0,108440.0,1.22034648]
[1748513544462,0.18741678,108450.0,108440.0,1.22034648]
[1748513545106,0.003,108450.0,108440.0,1.76338858]
[1748513545331,0.003,108450.0,108440.0,1.77792943]
[1748513545777,0.21201969,108480.0,108470.0,0.19360182]
[1748513545992,0.22123755,108480.0,108470.0,0.47113395]
[1748513546220,0.22861995,108480.0,108470.0,0.66473577]
[1748513546440,0.22861995,108480.0,108470.0,1.06473577]
[1748513546441,0.21940209,108480.0,108470.0,1.06473577]
[1748513546659,0.21018406,108480.0,108470.0,1.05551672]
[1748513546886,0.21018406,108480.0,108470.0,1.06473585]
[1748513547541,0.19358406,108480.0,108470.0,1.06473585]
[1748513547965,0.19367546,108490.0,108480.0,0.18436578]
[1748513548232,0.0184358,108480.0,108470.0,1.52219155]
[1748513548445,0.02765383,108480.0,108470.0,1.86219155]
[1748513548651,0.22123814,108480.0,108470.0,1.84375456]
[1748513548859,0.20280141,108480.0,108470.0,1.84575422]
[1748513549285,0.20329374,108480.0,108470.0,1.84575422]
[1748513549536,0.20329425,108480.0,108470.0,1.23105395]
[1748513549750,0.21909425,108480.0,108470.0,1.61109395]
[1748513550220,0.21909425,108480.0,108470.0,1.62953213]
[1748513550434,0.21909425,108480.0,108470.0,1.8139149]
[1748513551143,0.22557631,108480.0,108470.0,1.32277395]
[1748513551364,0.22557631,108480.0,108470.0,1.18096]
[1748513554272,0.22557631,108480.0,108470.0,0.89168]
[1748513554489,0.22557631,108480.0,108470.0,1.18092]
[1748513557250,0.22557631,108480.0,108470.0,0.89168]
[1748513557454,0.22557631,108480.0,108470.0,1.18088]
[1748513558549,0.22557631,108480.0,108470.0,0.89168]
[1748513558755,0.22557631,108480.0,108470.0,1.18088]
[1748513560256,0.19407631,108480.0,108470.0,1.45631672]
[1748513560467,0.19407631,108480.0,108470.0,1.46553585]
[1748513560677,0.19407631,108480.0,108470.0,1.4747549]
[1748513561160,0.19407631,108480.0,108470.0,1.48397386]
[1748513561880,0.00049233,108480.0,108470.0,2.17385548]
[1748513562095,0.00970993,108480.0,108470.0,2.17385548]
[1748513562338,0.0189277,108480.0,108470.0,2.17385548]
[1748513562745,0.0189277,108480.0,108470.0,1.87441119]
[1748513563352,0.02814564,108480.0,108470.0,1.87441119]
[1748513563779,0.00049233,108480.0,108470.0,2.18839633]
[1748513564702,0.01892779,108480.0,108470.0,1.87433119]
[1748513564903,0.02814582,108480.0,108470.0,1.87433119]
[1748513565370,0.04658213,108480.0,108470.0,1.87433127]
[1748513565512,0.04658213,108480.0,108470.0,1.87433068]
[1748513565718,0.22173031,108480.0,108470.0,1.83929352]
[1748513565915,0.03736453,108480.0,108470.0,1.84851206]
[1748513566502,0.22173073,108480.0,108470.0,1.79623672]
[1748513566704,0.2125127,108480.0,108470.0,1.81463473]
[1748513567318,0.2125127,108480.0,108470.0,1.82385352]
[1748513568521,0.2125127,108480.0,108470.0,1.8330724]
[1748513568937,0.2125127,108480.0,108470.0,1.82385361]
[1748513570884,0.20329459,108480.0,108470.0,1.61181395]
[1748513571033,0.21939459,108480.0,108470.0,1.80541568]
[1748513571602,0.21939459,108480.0,108470.0,1.8146349]
[1748513572001,0.21939459,108480.0,108470.0,1.82385386]
[1748513572848,0.22657639,108480.0,108470.0,0.801]
[1748513573056,0.22657639,108480.0,108470.0,1.18052]
[1748513573879,0.22657639,108480.0,108470.0,0.78052]
[1748513574329,0.0097101,108480.0,108470.0,1.42371693]
[1748513574539,0.00970985,108480.0,108470.0,2.16371693]
[1748513574749,0.01892762,108480.0,108470.0,2.16371693]
[1748513574969,0.03736359,108480.0,108470.0,2.16371693]
[1748513575698,0.00970985,108480.0,108470.0,2.16371693]
[1748513575942,0.00971002,108480.0,108470.0,2.17825778]
[1748513576669,0.01892788,108480.0,108470.0,2.17825778]
[1748513578665,0.03736402,108480.0,108470.0,1.58981349]
[1748513578871,0.03736402,108480.0,108470.0,1.84579531]
[1748513578872,0.21251202,108480.0,108470.0,1.84579531]
[1748513579073,0.21251202,108480.0,108470.0,1.86423298]
[1748513579273,0.21251202,108480.0,108470.0,1.85501427]
[1748513579497,0.21251202,108480.0,108470.0,1.86423315]
[1748513579697,0.21251202,108480.0,108470.0,1.85501427]
[1748513579924,0.20329416,108480.0,108470.0,1.86423315]
[1748513580586,0.19407622,108480.0,108470.0,1.86423315]
[1748513580795,0.18485811,108480.0,108470.0,1.65219349]
[1748513581012,0.18485811,108480.0,108470.0,1.47419531]
[1748513581477,0.18485811,108480.0,108470.0,1.46497626]
[1748513581699,0.18485811,108480.0,108470.0,1.48341444]
[1748513582146,0.18485811,108480.0,108470.0,1.47419539]
[1748513582359,0.18485811,108480.0,108470.0,1.48341444]
[1748513582990,0.18485811,108480.0,108470.0,1.47419539]
[1748513583387,0.18485811,108480.0,108470.0,1.28059349]
[1748513584031,0.18485811,108480.0,108470.0,1.28981262]
[1748513584435,0.18485811,108480.0,108470.0,1.28059349]
[1748513584843,0.18485811,108480.0,108470.0,1.28981262]
[1748513585249,0.18485811,108480.0,108470.0,1.28059349]
[1748513586105,0.18485811,108480.0,108470.0,1.47419531]